[Event "Early-Titled-Tuesday-Blitz-July-09-2024"]
[Site "Chess.com"]
[Date "2024.07.09"]
[Round "8"]
[White "MANOJ_MISHRA123"]
[Black "MarlonJodar"]
[Result "0-1"]
[WhiteElo "2252"]
[BlackElo "2372"]
[TimeControl "180+1"]
[EndTime "9:28:54 PDT"]
[Termination "MarlonJodar won on time"]

1. d4 {[%clk 0:03:00.7]} 1... Nf6 {[%clk 0:02:59.2]} 2. Bg5 {[%clk 0:02:54.4]}
2... Ne4 {[%clk 0:02:56.8]} 3. h4 {[%clk 0:02:51.7]} 3... h6 {[%clk 0:02:52.8]}
4. Bf4 {[%clk 0:02:47.4]} 4... d5 {[%clk 0:02:51.1]} 5. Nd2 {[%clk 0:02:42.9]}
5... Bf5 {[%clk 0:02:47.4]} 6. Nxe4 {[%clk 0:02:29.2]} 6... Bxe4 {[%clk
0:02:46.5]} 7. Nf3 {[%clk 0:02:11.9]} 7... e6 {[%clk 0:02:44.5]} 8. e3 {[%clk
0:02:08.7]} 8... Bd6 {[%clk 0:02:43.3]} 9. Ne5 {[%clk 0:02:05.7]} 9... Nd7
{[%clk 0:02:39.9]} 10. f3 {[%clk 0:02:02.2]} 10... Bh7 {[%clk 0:02:37.3]} 11.
Bd3 {[%clk 0:01:59.8]} 11... Bxd3 {[%clk 0:02:33.9]} 12. Nxd3 {[%clk 0:01:55.5]}
12... Bxf4 {[%clk 0:02:28.3]} 13. exf4 {[%clk 0:01:33.4]} 13... c5 {[%clk
0:02:25.7]} 14. dxc5 {[%clk 0:01:27.5]} 14... Nxc5 {[%clk 0:02:25.3]} 15. Ne5
{[%clk 0:00:49.4]} 15... O-O {[%clk 0:02:12.1]} 16. h5 {[%clk 0:00:47.4]} 16...
Rc8 {[%clk 0:02:09.1]} 17. g4 {[%clk 0:00:45.6]} 17... Nd7 {[%clk 0:01:59.6]}
18. Nd3 {[%clk 0:00:42.2]} 18... Re8 {[%clk 0:01:49.4]} 19. Qe2 {[%clk
0:00:31.8]} 19... Qa5+ {[%clk 0:01:30.4]} 20. c3 {[%clk 0:00:29.7]} 20... Qa6
{[%clk 0:01:14.7]} 21. g5 {[%clk 0:00:26.5]} 21... e5 {[%clk 0:01:12.2]} 22.
gxh6 {[%clk 0:00:12.7]} 22... e4 {[%clk 0:01:07.4]} 23. Nb4 {[%clk 0:00:08.4]}
23... Qxh6 {[%clk 0:01:03.3]} 24. O-O-O {[%clk 0:00:03.1]} 24... Qxf4+ {[%clk
0:01:02.6]} 25. Kb1 {[%clk 0:00:03.3]} 25... exf3 {[%clk 0:01:00]} 26. Qf2
{[%clk 0:00:01.4]} 26... Nf6 {[%clk 0:00:54.5]} 27. Ka1 {[%clk 0:00:02]} 27...
a5 {[%clk 0:00:45.9]} 28. Nxd5 {[%clk 0:00:01.4]} 28... Nxd5 {[%clk 0:00:46.8]}
29. Rxd5 {[%clk 0:00:01.6]} 29... Re2 {[%clk 0:00:44.4]} 0-1

[Event "Early-Titled-Tuesday-Blitz-July-09-2024"]
[Site "Chess.com"]
[Date "2024.07.09"]
[Round "8"]
[White "xh4823"]
[Black "NowInChess"]
[Result "1-0"]
[WhiteElo "2359"]
[BlackElo "2205"]
[TimeControl "180+1"]
[EndTime "9:28:55 PDT"]
[Termination "xh4823 won on time"]

1. d4 {[%clk 0:03:00.9]} 1... Nf6 {[%clk 0:02:59.6]} 2. c4 {[%clk 0:03:00.7]}
2... c5 {[%clk 0:03:00]} 3. d5 {[%clk 0:03:00]} 3... b5 {[%clk 0:03:00.4]} 4.
cxb5 {[%clk 0:02:57.4]} 4... a6 {[%clk 0:03:00.5]} 5. e3 {[%clk 0:02:54.2]} 5...
Bb7 {[%clk 0:02:52]} 6. Nc3 {[%clk 0:02:53.1]} 6... e6 {[%clk 0:02:51.6]} 7.
dxe6 {[%clk 0:02:38.9]} 7... fxe6 {[%clk 0:02:51.5]} 8. Nf3 {[%clk 0:02:37.3]}
8... d5 {[%clk 0:02:43.6]} 9. Be2 {[%clk 0:02:36.3]} 9... Bd6 {[%clk 0:02:41.5]}
10. O-O {[%clk 0:02:35.6]} 10... O-O {[%clk 0:02:40.7]} 11. a4 {[%clk
0:02:30.3]} 11... e5 {[%clk 0:02:37.1]} 12. bxa6 {[%clk 0:02:03.1]} 12... Nxa6
{[%clk 0:02:38]} 13. Nb5 {[%clk 0:01:43]} 13... e4 {[%clk 0:02:08.2]} 14. Ng5
{[%clk 0:01:33.4]} 14... Be5 {[%clk 0:01:18.8]} 15. Ne6 {[%clk 0:01:28.4]} 15...
Qb8 {[%clk 0:01:18.3]} 16. Nxf8 {[%clk 0:01:24.4]} 16... Bxh2+ {[%clk
0:01:18.1]} 17. Kh1 {[%clk 0:01:24.9]} 17... Kxf8 {[%clk 0:01:09.7]} 18. g3
{[%clk 0:01:24.8]} 18... Bxg3 {[%clk 0:01:03.4]} 19. fxg3 {[%clk 0:01:24]} 19...
Qxg3 {[%clk 0:01:04]} 20. Qe1 {[%clk 0:01:23.3]} 20... Qh3+ {[%clk 0:00:54.6]}
21. Kg1 {[%clk 0:01:23.4]} 21... Re8 {[%clk 0:00:35.1]} 22. Rf4 {[%clk
0:01:20.2]} 22... Re5 {[%clk 0:00:25.6]} 23. Qh4 {[%clk 0:01:19]} 23... Qxh4
{[%clk 0:00:07]} 24. Rxh4 {[%clk 0:01:19.9]} 24... Rg5+ {[%clk 0:00:07.1]} 25.
Kh2 {[%clk 0:01:16.3]} 25... Nb4 {[%clk 0:00:05.6]} 26. Bd2 {[%clk 0:01:13.8]}
26... Nc2 {[%clk 0:00:04.4]} 27. Rg1 {[%clk 0:01:12.8]} 27... Rxg1 {[%clk
0:00:03.8]} 28. Kxg1 {[%clk 0:01:13.7]} 28... d4 {[%clk 0:00:03.9]} 29. Nd6
{[%clk 0:01:08.6]} 29... Bd5 {[%clk 0:00:02.6]} 30. Bc4 {[%clk 0:01:05.7]} 30...
Bxc4 {[%clk 0:00:02.2]} 31. Nxc4 {[%clk 0:01:06.6]} 31... dxe3 {[%clk
0:00:01.4]} 32. Nxe3 {[%clk 0:01:05.6]} 32... Nd4 {[%clk 0:00:01.8]} 33. Kf2
{[%clk 0:01:02.9]} 33... Nf3 {[%clk 0:00:01.3]} 34. Rf4 {[%clk 0:00:53.9]} 34...
Nxd2 {[%clk 0:00:01.4]} 35. Rf5 {[%clk 0:00:53.9]} 1-0

[Event "Early-Titled-Tuesday-Blitz-July-09-2024"]
[Site "Chess.com"]
[Date "2024.07.09"]
[Round "8"]
[White "Navyblue1"]
[Black "pinelone"]
[Result "1/2-1/2"]
[WhiteElo "2121"]
[BlackElo "2361"]
[TimeControl "180+1"]
[EndTime "9:28:56 PDT"]
[Termination "Game drawn - insufficient material"]

1. d4 {[%clk 0:03:00.9]} 1... Nf6 {[%clk 0:01:35.7]} 2. c4 {[%clk 0:02:58.2]}
2... e6 {[%clk 0:01:35.8]} 3. Nf3 {[%clk 0:02:57.1]} 3... c5 {[%clk 0:01:34.6]}
4. d5 {[%clk 0:02:56.1]} 4... exd5 {[%clk 0:01:34.4]} 5. cxd5 {[%clk 0:02:57]}
5... d6 {[%clk 0:01:34.5]} 6. Nc3 {[%clk 0:02:57.5]} 6... g6 {[%clk 0:01:34.6]}
7. e4 {[%clk 0:02:57.4]} 7... a6 {[%clk 0:01:32.3]} 8. a4 {[%clk 0:02:55.8]}
8... Bg4 {[%clk 0:01:32.3]} 9. Be2 {[%clk 0:02:44.6]} 9... Bxf3 {[%clk
0:01:30.9]} 10. Bxf3 {[%clk 0:02:43.7]} 10... Nbd7 {[%clk 0:01:26.2]} 11. O-O
{[%clk 0:02:42.2]} 11... Bg7 {[%clk 0:01:25.8]} 12. Be2 {[%clk 0:02:39.5]} 12...
O-O {[%clk 0:01:25.5]} 13. Qc2 {[%clk 0:02:38.2]} 13... Rc8 {[%clk 0:01:11.7]}
14. Re1 {[%clk 0:02:35.9]} 14... c4 {[%clk 0:01:10.1]} 15. Be3 {[%clk
0:02:34.7]} 15... Qa5 {[%clk 0:00:54]} 16. Bd4 {[%clk 0:02:33.1]} 16... Qb4
{[%clk 0:00:45]} 17. a5 {[%clk 0:02:28.5]} 17... Nc5 {[%clk 0:00:44.2]} 18. Bxc5
{[%clk 0:02:19.8]} 18... Qxc5 {[%clk 0:00:37.7]} 19. Ra4 {[%clk 0:02:18.7]}
19... Rfe8 {[%clk 0:00:19.5]} 20. Rxc4 {[%clk 0:02:15]} 20... Qxa5 {[%clk
0:00:19.4]} 21. Rxc8 {[%clk 0:02:12.2]} 21... Rxc8 {[%clk 0:00:19.5]} 22. Bd3
{[%clk 0:02:10.1]} 22... Nd7 {[%clk 0:00:18.2]} 23. Rc1 {[%clk 0:02:05.1]} 23...
b5 {[%clk 0:00:15.4]} 24. Qd1 {[%clk 0:01:56.9]} 24... Ne5 {[%clk 0:00:13.8]}
25. Be2 {[%clk 0:01:53]} 25... Nc4 {[%clk 0:00:13.2]} 26. Bxc4 {[%clk
0:01:51.9]} 26... Rxc4 {[%clk 0:00:13]} 27. Qd3 {[%clk 0:01:49.5]} 27... Qb4
{[%clk 0:00:12.6]} 28. Rc2 {[%clk 0:01:46]} 28... Bxc3 {[%clk 0:00:08.4]} 29.
Rxc3 {[%clk 0:01:45.3]} 29... Qxb2 {[%clk 0:00:08]} 30. Rxc4 {[%clk 0:01:43.9]}
30... Qa1+ {[%clk 0:00:06.9]} 31. Qf1 {[%clk 0:01:39.9]} 31... Qxf1+ {[%clk
0:00:07]} 32. Kxf1 {[%clk 0:01:40.8]} 32... bxc4 {[%clk 0:00:07.5]} 33. Ke2
{[%clk 0:01:41.1]} 33... g5 {[%clk 0:00:04.5]} 34. Kd2 {[%clk 0:01:41.2]} 34...
Kg7 {[%clk 0:00:03.5]} 35. Kc3 {[%clk 0:01:41.8]} 35... Kf6 {[%clk 0:00:04.1]}
36. Kxc4 {[%clk 0:01:42.1]} 36... Ke5 {[%clk 0:00:04.8]} 37. f3 {[%clk
0:01:42.1]} 37... h5 {[%clk 0:00:04.8]} 38. Kb4 {[%clk 0:01:42.5]} 38... g4
{[%clk 0:00:03.5]} 39. Ka5 {[%clk 0:01:42.7]} 39... gxf3 {[%clk 0:00:03.5]} 40.
gxf3 {[%clk 0:01:41.2]} 40... f6 {[%clk 0:00:02.4]} 41. Kxa6 {[%clk 0:01:41.6]}
41... Kf4 {[%clk 0:00:03]} 42. Kb6 {[%clk 0:01:42]} 42... Kxf3 {[%clk
0:00:03.6]} 43. Kc6 {[%clk 0:01:42.1]} 43... Kxe4 {[%clk 0:00:04.3]} 44. Kxd6
{[%clk 0:01:42.4]} 44... f5 {[%clk 0:00:05]} 45. Ke6 {[%clk 0:01:41.4]} 45... f4
{[%clk 0:00:05.6]} 46. d6 {[%clk 0:01:42]} 46... f3 {[%clk 0:00:06.2]} 47. d7
{[%clk 0:01:42.5]} 47... f2 {[%clk 0:00:06.9]} 48. d8=Q {[%clk 0:01:42.7]} 48...
f1=Q {[%clk 0:00:07.2]} 49. Qd5+ {[%clk 0:01:42.8]} 49... Ke3 {[%clk 0:00:06.8]}
50. Qe5+ {[%clk 0:01:41.5]} 50... Kd2 {[%clk 0:00:06.3]} 51. Qxh5 {[%clk
0:01:38.1]} 51... Qa6+ {[%clk 0:00:05.2]} 52. Kf5 {[%clk 0:01:37.3]} 52... Qb5+
{[%clk 0:00:04]} 53. Kg4 {[%clk 0:01:36.7]} 53... Qe2+ {[%clk 0:00:02.2]} 54.
Kg5 {[%clk 0:01:36.3]} 54... Qe5+ {[%clk 0:00:02.3]} 55. Kh4 {[%clk 0:01:36.2]}
55... Qxh2+ {[%clk 0:00:02.3]} 56. Kg5 {[%clk 0:01:35.2]} 56... Qe5+ {[%clk
0:00:02.4]} 57. Kh4 {[%clk 0:01:35]} 57... Qxh5+ {[%clk 0:00:02.9]} 58. Kxh5
{[%clk 0:01:34.8]} 1/2-1/2

[Event "Early-Titled-Tuesday-Blitz-July-09-2024"]
[Site "Chess.com"]
[Date "2024.07.09"]
[Round "8"]
[White "yaguigor"]
[Black "Rakhmanov_Aleksandr"]
[Result "0-1"]
[WhiteElo "2615"]
[BlackElo "2860"]
[TimeControl "180+1"]
[EndTime "9:28:59 PDT"]
[Termination "Rakhmanov_Aleksandr won by resignation"]

1. e4 {[%clk 0:03:00.9]} 1... c5 {[%clk 0:02:49.8]} 2. Nf3 {[%clk 0:03:00.8]}
2... Nf6 {[%clk 0:02:50]} 3. e5 {[%clk 0:03:00.2]} 3... Nd5 {[%clk 0:02:50.3]}
4. Nc3 {[%clk 0:03:00.5]} 4... Nxc3 {[%clk 0:02:50.8]} 5. dxc3 {[%clk 0:03:01]}
5... Nc6 {[%clk 0:02:51.7]} 6. Bf4 {[%clk 0:02:53.4]} 6... Qb6 {[%clk
0:02:52.2]} 7. b3 {[%clk 0:02:51.6]} 7... Qc7 {[%clk 0:02:52.2]} 8. Qd2 {[%clk
0:02:48.7]} 8... e6 {[%clk 0:02:51.7]} 9. O-O-O {[%clk 0:02:47.5]} 9... h6
{[%clk 0:02:52.3]} 10. h4 {[%clk 0:02:46.4]} 10... a6 {[%clk 0:02:52.9]} 11. Bd3
{[%clk 0:02:44.7]} 11... b5 {[%clk 0:02:53.3]} 12. Be4 {[%clk 0:02:44.7]} 12...
c4 {[%clk 0:02:53.3]} 13. Nd4 {[%clk 0:02:36.4]} 13... Bb7 {[%clk 0:02:50.1]}
14. Nxc6 {[%clk 0:02:35.4]} 14... Bxc6 {[%clk 0:02:50.3]} 15. Bxc6 {[%clk
0:02:29]} 15... Qxc6 {[%clk 0:02:51.2]} 16. f3 {[%clk 0:02:27.7]} 16... a5
{[%clk 0:02:47.9]} 17. Kb2 {[%clk 0:02:25.4]} 17... b4 {[%clk 0:02:44.5]} 18.
bxc4 {[%clk 0:02:21.2]} 18... Be7 {[%clk 0:02:28.2]} 19. Ka1 {[%clk 0:02:05.4]}
19... Rc8 {[%clk 0:02:10.7]} 20. cxb4 {[%clk 0:01:50.5]} 20... axb4 {[%clk
0:02:10.4]} 21. Qd3 {[%clk 0:01:49.9]} 21... Ra8 {[%clk 0:01:47.1]} 22. Rb1
{[%clk 0:01:46.4]} 22... Bc5 {[%clk 0:01:25.8]} 23. Rb3 {[%clk 0:01:45.1]} 23...
Ra4 {[%clk 0:00:58.7]} 24. Kb2 {[%clk 0:01:30.5]} 24... Qb6 {[%clk 0:00:42.8]}
25. Be3 {[%clk 0:01:26.6]} 25... O-O {[%clk 0:00:30.8]} 26. Bxc5 {[%clk
0:01:12.3]} 26... Qxc5 {[%clk 0:00:30.7]} 27. Qd6 {[%clk 0:01:12.9]} 27... Qxc4
{[%clk 0:00:20.4]} 28. Qd3 {[%clk 0:01:00.2]} 28... Qc5 {[%clk 0:00:19.3]} 29.
f4 {[%clk 0:00:57.7]} 29... Rfa8 {[%clk 0:00:15.3]} 30. Ra1 {[%clk 0:00:56.9]}
30... Qa7 {[%clk 0:00:14.2]} 31. Kc1 {[%clk 0:00:51.8]} 31... Qg1+ {[%clk
0:00:13.7]} 32. Kb2 {[%clk 0:00:47.2]} 32... Qxa1+ {[%clk 0:00:12.9]} 0-1

[Event "Early-Titled-Tuesday-Blitz-July-09-2024"]
[Site "Chess.com"]
[Date "2024.07.09"]
[Round "8"]
[White "KorolDimitriy75"]
[Black "Dmitry_Ponomarev"]
[Result "1-0"]
[WhiteElo "2413"]
[BlackElo "2512"]
[TimeControl "180+1"]
[EndTime "9:29:00 PDT"]
[Termination "KorolDimitriy75 won by resignation"]

1. d4 {[%clk 0:02:49.6]} 1... d5 {[%clk 0:03:00.4]} 2. c4 {[%clk 0:02:49.5]}
2... c6 {[%clk 0:03:01.1]} 3. Nc3 {[%clk 0:02:49.7]} 3... Nf6 {[%clk 0:03:01.3]}
4. e3 {[%clk 0:02:50]} 4... a6 {[%clk 0:03:00.6]} 5. Nf3 {[%clk 0:02:49.9]} 5...
Bf5 {[%clk 0:03:01.1]} 6. Bd3 {[%clk 0:02:49.6]} 6... Bxd3 {[%clk 0:03:00.5]} 7.
Qxd3 {[%clk 0:02:50.5]} 7... e6 {[%clk 0:03:01.3]} 8. O-O {[%clk 0:02:50.7]}
8... Bd6 {[%clk 0:03:01.9]} 9. e4 {[%clk 0:02:50.8]} 9... dxe4 {[%clk
0:03:01.6]} 10. Nxe4 {[%clk 0:02:51.7]} 10... Nxe4 {[%clk 0:03:02.1]} 11. Qxe4
{[%clk 0:02:52.6]} 11... Nd7 {[%clk 0:03:02.8]} 12. Bg5 {[%clk 0:02:51.5]} 12...
Nf6 {[%clk 0:03:02.6]} 13. Qe2 {[%clk 0:02:51.2]} 13... Be7 {[%clk 0:03:02.5]}
14. Rad1 {[%clk 0:02:46.4]} 14... O-O {[%clk 0:03:01.9]} 15. Rd3 {[%clk
0:02:37.7]} 15... Rc8 {[%clk 0:02:56.5]} 16. Rfd1 {[%clk 0:02:30.4]} 16... Qa5
{[%clk 0:02:54.4]} 17. b3 {[%clk 0:02:30.3]} 17... Rcd8 {[%clk 0:02:48.9]} 18.
h3 {[%clk 0:02:21]} 18... h6 {[%clk 0:02:47]} 19. Bh4 {[%clk 0:02:17.6]} 19...
Rfe8 {[%clk 0:02:42.3]} 20. Ne5 {[%clk 0:02:05.8]} 20... Nd7 {[%clk 0:02:34.5]}
21. Bg3 {[%clk 0:01:35.6]} 21... Nxe5 {[%clk 0:02:30.7]} 22. Bxe5 {[%clk
0:01:32.8]} 22... Rd7 {[%clk 0:02:27.1]} 23. Rg3 {[%clk 0:01:04.2]} 23... g6
{[%clk 0:02:23.5]} 24. Qh5 {[%clk 0:00:24.2]} 24... Kh7 {[%clk 0:02:15]} 25. Qf3
{[%clk 0:00:19.8]} 25... Bf8 {[%clk 0:02:14.4]} 26. Qf6 {[%clk 0:00:17.5]} 26...
Qxe5 {[%clk 0:01:56.1]} 27. Qxe5 {[%clk 0:00:16.7]} 27... Bd6 {[%clk 0:01:56.7]}
28. Qe3 {[%clk 0:00:15]} 28... Bxg3 {[%clk 0:01:57.6]} 29. Qxg3 {[%clk
0:00:14.1]} 29... e5 {[%clk 0:01:57.6]} 30. Qe3 {[%clk 0:00:12.6]} 30... Re6
{[%clk 0:01:54.2]} 31. d5 {[%clk 0:00:12.1]} 31... cxd5 {[%clk 0:01:53.3]} 32.
Rxd5 {[%clk 0:00:13]} 32... Rde7 {[%clk 0:01:53.3]} 33. g3 {[%clk 0:00:11.9]}
33... e4 {[%clk 0:01:50.5]} 34. Kg2 {[%clk 0:00:10.4]} 34... Rf6 {[%clk
0:01:49.8]} 35. Rd4 {[%clk 0:00:08.7]} 35... Rf3 {[%clk 0:01:46]} 36. Qe2 {[%clk
0:00:08.7]} 36... f5 {[%clk 0:01:43.5]} 37. Qd1 {[%clk 0:00:07.2]} 37... Kg7
{[%clk 0:01:35.6]} 38. Rd7 {[%clk 0:00:06.8]} 38... Kf7 {[%clk 0:01:34.6]} 39.
Qd6 {[%clk 0:00:06.9]} 39... Rxd7 {[%clk 0:01:34.5]} 40. Qxd7+ {[%clk
0:00:07.8]} 40... Kf6 {[%clk 0:01:34.9]} 41. Qxb7 {[%clk 0:00:08.1]} 41... Rd3
{[%clk 0:01:34.7]} 42. Qxa6+ {[%clk 0:00:08.1]} 42... Kg5 {[%clk 0:01:34.9]} 43.
h4+ {[%clk 0:00:07.9]} 43... Kh5 {[%clk 0:01:35]} 44. Qe6 {[%clk 0:00:06.8]}
44... Rd2 {[%clk 0:01:34.8]} 45. a4 {[%clk 0:00:05.8]} 45... Re2 {[%clk
0:01:35.2]} 46. Kg1 {[%clk 0:00:05.1]} 46... Re1+ {[%clk 0:01:35]} 47. Kg2
{[%clk 0:00:04.6]} 47... Re2 {[%clk 0:01:35.3]} 48. Kf1 {[%clk 0:00:04.9]} 48...
Rb2 {[%clk 0:01:35.8]} 49. Qb6 {[%clk 0:00:04.2]} 49... Rb1+ {[%clk 0:01:35.7]}
50. Kg2 {[%clk 0:00:03.9]} 50... Re1 {[%clk 0:01:35.9]} 51. a5 {[%clk
0:00:03.6]} 51... Re2 {[%clk 0:01:36.2]} 52. a6 {[%clk 0:00:02.7]} 52... e3
{[%clk 0:01:36]} 53. Qxe3 {[%clk 0:00:02.8]} 53... Rxe3 {[%clk 0:01:36.3]} 54.
fxe3 {[%clk 0:00:03.7]} 54... g5 {[%clk 0:01:36.3]} 55. a7 {[%clk 0:00:03.6]}
55... gxh4 {[%clk 0:01:34.8]} 56. gxh4 {[%clk 0:00:04.5]} 56... Kxh4 {[%clk
0:01:35.7]} 57. a8=Q {[%clk 0:00:04.3]} 57... Kg4 {[%clk 0:01:35.4]} 58. Qf3+
{[%clk 0:00:05.2]} 58... Kg5 {[%clk 0:01:35.4]} 59. Qf4+ {[%clk 0:00:05.5]} 1-0

[Event "Early-Titled-Tuesday-Blitz-July-09-2024"]
[Site "Chess.com"]
[Date "2024.07.09"]
[Round "8"]
[White "Barbix1"]
[Black "GM_Huschenbeth"]
[Result "0-1"]
[WhiteElo "2376"]
[BlackElo "2520"]
[TimeControl "180+1"]
[EndTime "9:29:00 PDT"]
[Termination "GM_Huschenbeth won by resignation"]

1. d4 {[%clk 0:03:00.9]} 1... d5 {[%clk 0:02:58]} 2. c4 {[%clk 0:03:00.7]} 2...
e5 {[%clk 0:02:58.4]} 3. dxe5 {[%clk 0:02:56]} 3... d4 {[%clk 0:02:58.9]} 4. a3
{[%clk 0:02:56.5]} 4... Nc6 {[%clk 0:02:58.3]} 5. Nf3 {[%clk 0:02:55.4]} 5...
Nge7 {[%clk 0:02:58.6]} 6. e3 {[%clk 0:02:43]} 6... Bg4 {[%clk 0:02:57.7]} 7.
exd4 {[%clk 0:02:30.7]} 7... Bxf3 {[%clk 0:02:55.7]} 8. Qxf3 {[%clk 0:02:20.1]}
8... Qxd4 {[%clk 0:02:51.9]} 9. Be2 {[%clk 0:02:06.5]} 9... Qxe5 {[%clk
0:02:45.7]} 10. Qe3 {[%clk 0:01:56.7]} 10... Nf5 {[%clk 0:02:36.4]} 11. Qxe5+
{[%clk 0:01:51.9]} 11... Nxe5 {[%clk 0:02:37.3]} 12. Bf4 {[%clk 0:01:30.3]}
12... Ng6 {[%clk 0:01:42.2]} 13. Bxc7 {[%clk 0:01:20.1]} 13... Rc8 {[%clk
0:01:41]} 14. Bg3 {[%clk 0:00:53.3]} 14... h5 {[%clk 0:01:17]} 15. h3 {[%clk
0:00:17.8]} 15... Nxg3 {[%clk 0:00:54.7]} 16. fxg3 {[%clk 0:00:18.7]} 16... Bd6
{[%clk 0:00:54.9]} 17. Kf2 {[%clk 0:00:15.7]} 17... Bc5+ {[%clk 0:00:55]} 18.
Kf1 {[%clk 0:00:15.1]} 18... h4 {[%clk 0:00:52.1]} 19. gxh4 {[%clk 0:00:11.6]}
19... Rxh4 {[%clk 0:00:53]} 20. Nc3 {[%clk 0:00:11.8]} 20... Bd4 {[%clk
0:00:49]} 21. g3 {[%clk 0:00:10.5]} 21... Rh6 {[%clk 0:00:39.5]} 22. Nb5 {[%clk
0:00:10.5]} 22... Be5 {[%clk 0:00:37]} 23. Kg2 {[%clk 0:00:06.6]} 23... a6
{[%clk 0:00:37.4]} 24. Nc3 {[%clk 0:00:04.3]} 24... Bxc3 {[%clk 0:00:32.6]} 25.
bxc3 {[%clk 0:00:05.2]} 25... Ne5 {[%clk 0:00:31.6]} 26. Rhe1 {[%clk 0:00:05]}
26... Kf8 {[%clk 0:00:27.2]} 27. Rab1 {[%clk 0:00:04.3]} 27... b6 {[%clk
0:00:26]} 28. Rxb6 {[%clk 0:00:03.6]} 28... Rxb6 {[%clk 0:00:24.9]} 0-1

[Event "Early-Titled-Tuesday-Blitz-July-09-2024"]
[Site "Chess.com"]
[Date "2024.07.09"]
[Round "8"]
[White "UK_23"]
[Black "kadirsoria"]
[Result "1-0"]
[WhiteElo "2410"]
[BlackElo "2232"]
[TimeControl "180+1"]
[EndTime "9:29:04 PDT"]
[Termination "UK_23 won on time"]

1. e4 {[%clk 0:03:00.9]} 1... c5 {[%clk 0:02:59.2]} 2. Nf3 {[%clk 0:03:00.8]}
2... d6 {[%clk 0:02:59]} 3. d4 {[%clk 0:02:57.7]} 3... cxd4 {[%clk 0:02:59.9]}
4. Qxd4 {[%clk 0:02:58.2]} 4... a6 {[%clk 0:02:55.3]} 5. Be2 {[%clk 0:02:57.9]}
5... Nc6 {[%clk 0:02:53.8]} 6. Qe3 {[%clk 0:02:57.6]} 6... g6 {[%clk 0:02:53.6]}
7. h3 {[%clk 0:02:57.2]} 7... Bg7 {[%clk 0:02:19.1]} 8. O-O {[%clk 0:02:56.3]}
8... Nf6 {[%clk 0:02:15.7]} 9. Rd1 {[%clk 0:02:55]} 9... Qa5 {[%clk 0:02:09.4]}
10. c4 {[%clk 0:02:53.2]} 10... O-O {[%clk 0:02:05]} 11. Nc3 {[%clk 0:02:52.6]}
11... Be6 {[%clk 0:02:02.7]} 12. Rb1 {[%clk 0:02:47.4]} 12... Rfe8 {[%clk
0:01:58.8]} 13. a3 {[%clk 0:02:41.5]} 13... Nd7 {[%clk 0:01:50.7]} 14. b4 {[%clk
0:02:38.4]} 14... Qd8 {[%clk 0:01:48.2]} 15. Bb2 {[%clk 0:02:36.9]} 15... Nde5
{[%clk 0:01:40.5]} 16. Nd5 {[%clk 0:02:27.7]} 16... Bxd5 {[%clk 0:01:33.1]} 17.
cxd5 {[%clk 0:02:20.4]} 17... Nxf3+ {[%clk 0:01:30.9]} 18. Bxf3 {[%clk
0:02:19.7]} 18... Ne5 {[%clk 0:01:30]} 19. Be2 {[%clk 0:02:19.8]} 19... Rc8
{[%clk 0:01:23.9]} 20. Qb3 {[%clk 0:02:02.3]} 20... b5 {[%clk 0:01:20.3]} 21.
Rbc1 {[%clk 0:01:59.8]} 21... Qb6 {[%clk 0:01:09.2]} 22. Bd4 {[%clk 0:01:55.2]}
22... Nf3+ {[%clk 0:00:56.8]} 23. Bxf3 {[%clk 0:01:54.9]} 23... Bxd4 {[%clk
0:00:55.3]} 24. Rc2 {[%clk 0:01:53]} 24... Rc4 {[%clk 0:00:32.7]} 25. Rxc4
{[%clk 0:01:49.2]} 25... bxc4 {[%clk 0:00:32.6]} 26. Qxc4 {[%clk 0:01:48.1]}
26... Bxf2+ {[%clk 0:00:32.2]} 27. Kh1 {[%clk 0:01:43.1]} 27... Bg3 {[%clk
0:00:20.8]} 28. Qc6 {[%clk 0:01:34.5]} 28... Qb8 {[%clk 0:00:12.8]} 29. Rc1
{[%clk 0:01:33]} 29... Rf8 {[%clk 0:00:10]} 30. Qc7 {[%clk 0:01:27]} 30... Qb5
{[%clk 0:00:08.5]} 31. Qxe7 {[%clk 0:01:24.7]} 31... Qd3 {[%clk 0:00:07.1]} 32.
a4 {[%clk 0:01:15.5]} 32... Be5 {[%clk 0:00:06.2]} 33. Qg5 {[%clk 0:01:09.9]}
33... Qa3 {[%clk 0:00:04.3]} 34. Qd2 {[%clk 0:00:54.7]} 34... Qxa4 {[%clk
0:00:03.4]} 35. h4 {[%clk 0:00:55.3]} 35... Qb5 {[%clk 0:00:02.5]} 36. h5 {[%clk
0:00:53.7]} 36... Rb8 {[%clk 0:00:01.5]} 37. h6 {[%clk 0:00:51.4]} 37... Qxb4
{[%clk 0:00:01.2]} 38. Qxb4 {[%clk 0:00:51.4]} 1-0

[Event "Early-Titled-Tuesday-Blitz-July-09-2024"]
[Site "Chess.com"]
[Date "2024.07.09"]
[Round "8"]
[White "GMMikhailKazakov"]
[Black "MrMatesM"]
[Result "0-1"]
[WhiteElo "2507"]
[BlackElo "2696"]
[TimeControl "180+1"]
[EndTime "9:29:06 PDT"]
[Termination "MrMatesM won on time"]

1. e4 {[%clk 0:02:50.2]} 1... c5 {[%clk 0:03:00]} 2. Nf3 {[%clk 0:02:48.9]} 2...
d6 {[%clk 0:03:00.5]} 3. d4 {[%clk 0:02:48.6]} 3... cxd4 {[%clk 0:03:01.4]} 4.
Nxd4 {[%clk 0:02:48]} 4... Nf6 {[%clk 0:03:02]} 5. Nc3 {[%clk 0:02:47.5]} 5...
Nc6 {[%clk 0:03:02.5]} 6. Be2 {[%clk 0:02:45.3]} 6... e5 {[%clk 0:03:02.4]} 7.
Nb3 {[%clk 0:02:44.8]} 7... Be7 {[%clk 0:03:03.1]} 8. O-O {[%clk 0:02:43.7]}
8... O-O {[%clk 0:03:03.8]} 9. Be3 {[%clk 0:02:34.1]} 9... a5 {[%clk 0:03:01.3]}
10. a3 {[%clk 0:02:25.3]} 10... Be6 {[%clk 0:02:55.7]} 11. Bf3 {[%clk
0:02:20.9]} 11... a4 {[%clk 0:02:51]} 12. Nc1 {[%clk 0:02:17.1]} 12... Qa5
{[%clk 0:02:51]} 13. Nd5 {[%clk 0:02:11.1]} 13... Bxd5 {[%clk 0:02:43.6]} 14.
exd5 {[%clk 0:02:12]} 14... Nb8 {[%clk 0:02:39.9]} 15. c4 {[%clk 0:01:58.3]}
15... Nbd7 {[%clk 0:02:37.4]} 16. Bd2 {[%clk 0:01:56.1]} 16... Qa7 {[%clk
0:02:35.6]} 17. Bb4 {[%clk 0:01:53.6]} 17... Nc5 {[%clk 0:02:30.6]} 18. Re1
{[%clk 0:01:45.5]} 18... Nfd7 {[%clk 0:02:28]} 19. Nd3 {[%clk 0:01:42.5]} 19...
Bd8 {[%clk 0:02:26.6]} 20. Bg4 {[%clk 0:01:37.3]} 20... f5 {[%clk 0:02:26.6]}
21. Bh3 {[%clk 0:01:37.2]} 21... Bb6 {[%clk 0:02:25.9]} 22. Nxc5 {[%clk
0:01:33.5]} 22... Bxc5 {[%clk 0:02:26.1]} 23. Qc2 {[%clk 0:01:30.3]} 23... e4
{[%clk 0:02:16.9]} 24. Bc3 {[%clk 0:01:26.4]} 24... Rae8 {[%clk 0:02:14.9]} 25.
Re2 {[%clk 0:01:23.3]} 25... Bd4 {[%clk 0:02:06.8]} 26. Bxd4 {[%clk 0:01:17.2]}
26... Qxd4 {[%clk 0:02:06.9]} 27. Qxa4 {[%clk 0:01:17.6]} 27... Nc5 {[%clk
0:02:07.4]} 28. Qd1 {[%clk 0:01:16.6]} 28... Nd3 {[%clk 0:02:07.5]} 29. b3
{[%clk 0:01:09.4]} 29... e3 {[%clk 0:01:52.3]} 30. Raa2 {[%clk 0:00:48.4]} 30...
exf2+ {[%clk 0:01:47.1]} 31. Kf1 {[%clk 0:00:47.9]} 31... Qc3 {[%clk 0:01:32.7]}
32. Rad2 {[%clk 0:00:35.9]} 32... Nf4 {[%clk 0:01:17.9]} 33. Rxe8 {[%clk
0:00:19.5]} 33... Rxe8 {[%clk 0:01:18.1]} 34. Rxf2 {[%clk 0:00:20]} 34... Nd3
{[%clk 0:01:09.1]} 35. Re2 {[%clk 0:00:17.1]} 35... Rxe2 {[%clk 0:01:00.3]} 36.
Kxe2 {[%clk 0:00:18]} 36... Nf4+ {[%clk 0:00:59.7]} 37. Kf2 {[%clk 0:00:17.9]}
37... g6 {[%clk 0:00:55.4]} 38. Qf3 {[%clk 0:00:13.2]} 38... Nd3+ {[%clk
0:00:49.8]} 39. Kg3 {[%clk 0:00:12.5]} 39... Qe1+ {[%clk 0:00:49.9]} 0-1